Cogmind - Beta 13 @@@ ROGUE MODE // 2024.04.03 @ 23:10:12 Player: Sixten Result: Destroyed by G-47 Trooper with Particle Gun Performance ------------- Evolutions (0) 0 Regions Visited (1) 200 Robots Destroyed (13) 65 Value Destroyed (151) 151 Prototype IDs (0) 0 Alien Tech Used (0) 0 Bonus (0) 0 TOTAL SCORE: 416 Bonus ------- None Cogmind --------- Core Integrity 0/250 Matter 300/300 Energy 99/100 System Corruption 0% Temperature Cool (9) Movement Core (100) Ox1 Location -10/Materials Parts ------- > --- POWER (1) -------- (None) > --- PROPULSION (2) --- (None) > --- UTILITY (2) ------ Small Storage Unit Structural Scanner > --- WEAPON (2) ------- (None) > --- INVENTORY (8) ---- Flight Unit Flight Unit Flight Unit Flight Unit Light Armor Plating Peak State ------------ > --- POWER ------------ Light Ion Engine > --- PROPULSION ------- Light Treads Light Treads > --- UTILITY ---------- Small Storage Unit Visual Processing Unit > --- WEAPON ----------- Small Laser Small Laser > --- INVENTORY -------- Flight Unit Flight Unit Flight Unit Flight Unit [Rating: 8] Favorites ----------- Power Light Ion Engine Engine Light Ion Engine Propulsion Light Treads Treads Light Treads Utility Small Storage Unit Device Structural Scanner Storage Small Storage Unit Processor Visual Processing Unit Weapon Small Laser Energy Gun Small Laser Ballistic Gun Light Assault Rifle Ballistic Cannon Light Cannon Build | -11 -10 ------- Run | Yrd Mat Slots Evolved . | . . Power . | . . Propulsion . | . . Utility . | . . Weapon . | . . Parts Attached 18 | 6 12 Power 3 | 1 2 Engine 3 | 1 2 Core . | . . Reactor . | . . Propulsion 4 | 2 2 Treads 4 | 2 2 Leg . | . . Wheel . | . . Hover . | . . Flight . | . . Utility 4 | 1 3 Device 1 | . 1 Storage 2 | 1 1 Processor 1 | . 1 Hackware . | . . Protection . | . . Artifact . | . . Weapon 7 | 2 5 Energy Gun 5 | 2 3 Energy Cannon . | . . Ballistic Gun 1 | . 1 Ballistic Cannon 1 | . 1 Launcher . | . . Special Weapon . | . . Impact Weapon . | . . Slashing Weapon . | . . Piercing Weapon . | . . Special Melee Weapon . | . . Unidentified Prototypes . | . . Parts Lost 5 | . 5 Power 2 | . 2 Propulsion 2 | . 2 Utility . | . . Weapon 1 | . 1 Highest Loss Streak 4 | . 4 To Critical Strikes . | . . Average Slot Usage (%) 75 | . 75 Engine 10 | . 10 Treads 18 | . 18 Device 1 | . 1 Storage 14 | . 14 Processor 9 | . 9 Energy Gun 17 | . 17 Ballistic Gun 1 | . 1 Ballistic Cannon 1 | . 1 Naked Turns . | . . Heaviest Build 14 | 13 14 Greatest Support 40 | 40 40 Greatest Overweight (x) 2 | 2 2 Average Overweight (x) . | . . Largest Inventory Capacity 8 | 8 8 Average Capacity 7 | 6 7 Most Carried 5 | 2 5 Average Carried 2 | 1 2 Final Capacity 8 | 8 8 Final Carried 5 | 2 5 Class Distribution -------------------- 100% | Mutant Dominant Class ---------------- Mutant | -10/Materials Resources | -11 -10 ----------- Run | Yrd Mat Matter Collected 383 | 260 123 Remotely . | . . Salvage Created 315 | . 315 Parts 20 | . 20 Haulers Intercepted 1 | . 1 Recyclers Shooed 2 | . 2 Parts Field Recycled . | . . Retrieved Matter . | . . Parts Self-Destructed . | . . Prevented . | . . Kills | -11 -10 ------- Run | Yrd Mat Combat Hostiles Destroyed 6 | . 6 Guns 5 | . 5 Cannons 1 | . 1 Classes Destroyed 6 | . 6 Worker 3 | . 3 Hauler 1 | . 1 Recycler 1 | . 1 Watcher 2 | . 2 Swarmer 4 | . 4 Grunt 2 | . 2 Best Kill Streak 4 | . 4 Combat Bots Only 2 | . 2 Max Kills in Single Turn 1 | . 1 Gunslinging . | . . Exploded . | . . Melee . | . . Uniques/NPCs Destroyed . | . . Combat | -11 -10 -------- Run | Yrd Mat Hostile Shots Fired 98 | . 98 Missed 24 | . 24 Damage Taken 823 | . 823 Core 254 | . 254 Absorbed by Shields . | . . Core Remaining (%) 100 | 100 . Volleys Fired 57 | . 57 Largest 2 | . 2 Hottest 80 | . 80 Shots Fired 88 | . 88 Gun 83 | . 83 Cannon 5 | . 5 Launcher . | . . Special . | . . Kinetic 14 | . 14 Thermal 74 | . 74 Explosive . | . . Electromagnetic . | . . Robot Hit Streak 11 | . 11 Robot Miss Streak 3 | . 3 Penetration Max . | . . Secondary Targets . | . . Shots Hit Robots 57 | . 57 Core Hits 21 | . 21 Critical Kills . | . . Critical Parts Destroyed . | . . Critical Strikes . | . . Melee Attacks . | . . Impact . | . . Slashing . | . . Piercing . | . . Sneak Attacks . | . . Combat Hostiles . | . . Follow-up Attacks . | . . Damage Inflicted 675 | . 675 Guns 616 | . 616 Cannons 35 | . 35 Explosions . | . . Melee . | . . Ramming 24 | . 24 Kinetic 91 | . 91 Thermal 560 | . 560 Explosive . | . . Electromagnetic . | . . Impact . | . . Slashing . | . . Piercing . | . . Highest Corruption . | . . Average Corruption . | . . Corruption Purged . | . . Corruption Blocked . | . . Overload Shots . | . . Overflow Damage . | . . Projectiles . | . . Explosions . | . . Melee . | . . Knockbacks . | . . Impact . | . . Kinetic . | . . Secondary . | . . Self-Inflicted Damage 7 | . 7 Shots . | . . Rammed 18 | . 18 Targets Rammed 18 | . 18 Kicked . | . . Crushed . | . . Highest Temperature 288 | . 288 Average Temperature 86 | . 86 Received Heat Transfer 324 | . 324 Siege Activations . | . . Robots Corrupted . | . . Combat Hostiles . | . . Parts Fried . | . . Impact Corruptions . | . . Robots Melted . | . . Combat Hostiles . | . . Parts Melted 1 | . 1 Heat Transferred 1275 | . 1275 Parts Sabotaged . | . . Parts Stolen . | . . Parts Stripped . | . . Power Chain Reactions . | . . Alert | -11 -10 ------- Run | Yrd Mat Peak Influence 174 | . 174 Initial . | . . Average 43 | . 48 Maximum Alert Level 1 | . 1 Low Security (%) 99 | 100 99 Level 1 . | . . Level 2 . | . . Level 3 . | . . Level 4 . | . . Level 5 . | . . High Security . | . . Max Security . | . . Squads Dispatched 2 | . 2 Investigation . | . . Extermination . | . . Reinforcement 2 | . 2 Assault . | . . Garrison . | . . Intercept . | . . Searches Triggered . | . . Construction Impeded . | . . Haulers Reinforced . | . . Active Scanning Responses . | . . Cargo Convoy Interrupts . | . . Stealth | -11 -10 --------- Run | Yrd Mat Distress Signals 3 | . 3 Communications Jammed . | . . Distress Signals . | . . Times Spotted 22 | . 22 Peak Tracking Total 4 | . 4 Tactical Retreats 2 | . 2 Traps | -11 -10 ------- Run | Yrd Mat Traps Triggered 2 | . 2 Indirectly . | . . Trap Hack Attempts . | . . Triggered . | . . Disarmed . | . . Reprogrammed . | . . Reused . | . . Traps Extracted . | . . Installed . | . . Triggered . | . . Machines | -11 -10 ---------- Run | Yrd Mat Machines Disabled . | . . Max in Single Turn . | . . Machines Repaired . | . . Machines Dismantled . | . . Machines Sabotaged . | . . Overloaded Fab Kills . | . . Hacking | -11 -10 --------- Run | Yrd Mat Machines Accessed 2 | . 2 Terminals 2 | . 2 Fabricators . | . . Repair Stations . | . . Recycling Units . | . . Scanalyzers . | . . Garrison Access . | . . Total Hacks 4 | . 4 Successful 3 | . 3 Failed 1 | . 1 Catastrophic . | . . Database Lockouts . | . . Manual . | . . Terminals 4 | . 4 Fabricators . | . . Repair Stations . | . . Recycling Units . | . . Scanalyzers . | . . Garrison Access . | . . Terminal Hacks 3 | . 3 Alert Level 1 | . 1 Hauler Manifests 1 | . 1 Zone Layout 1 | . 1 Fabricator Hacks . | . . Repair Station Hacks . | . . Recycling Unit Hacks . | . . Scanalyzer . | . . Garrison Access Hacks . | . . Unauthorized Hacks . | . . Terminals . | . . Fabricators . | . . Repair Stations . | . . Recycling Units . | . . Scanalyzers . | . . Garrison Access . | . . Data Cores Recovered . | . . Used . | . . Hacking Detections 2 | . 2 Full Trace Events . | . . Feedback Events . | . . Feedback Blocked . | . . Robot Schematics Acquired . | . . Robots Built . | . . Authchips . | . . Time . | . . Total Robot Build Rating . | . . Part Schematics Acquired . | . . Parts Built . | . . Authchips . | . . Time . | . . Total Part Build Rating . | . . Parts Repaired . | . . Time . | . . Parts Recycled . | . . Recycled Matter . | . . Retrieved Matter . | . . Retrieved Components . | . . Parts Scanalyzed . | . . Part Schematics Acquired . | . . Parts Damaged . | . . Bothacking | -11 -10 ------------ Run | Yrd Mat Used RIF Installer . | . . Robots Hacked . | . . Non-combat . | . . Combat . | . . Robot Hacks Applied . | . . Relay Couplers Released . | . . Fabnet Peak Effective % . | . . Robots Rewired . | . . Allies Hacked . | . . Hacks Repelled . | . . Allies | -11 -10 -------- Run | Yrd Mat Total Allies . | . . Largest Group . | . . Highest-Rated Group . | . . Highest-Rated Ally . | . . Total Orders . | . . Ally Attacks . | . . Total Damage . | . . Kills . | . . Allies Corrupted . | . . Allies Melted . | . . Intel | -11 -10 ------- Run | Yrd Mat Robot Analysis Total . | . . Derelict Logs Recovered . | . . Drone Launches . | . . Drone Recoveries . | . . Exploration | -11 -10 ------------- Run | Yrd Mat Turns Passed 1071 | 125 946 Spaces Moved 551 | 83 468 Core 47 | 33 14 Treads 504 | 50 454 Legs . | . . Wheels . | . . Hover . | . . Flight . | . . Fastest Speed 50 | 50 100 Average Speed 155 | 139 158 Slowest Speed 160 | 160 160 Overloaded Moves . | . . Propulsion Burnouts . | . . Robots Hopped . | . . Cave-ins Triggered . | . . Exploration Rate (%) 32 | 5 59 Regions Visited 1 Branch Regions . Pre-discovered Areas . | . . Known Exits Taken . | . . Unknown Exits Taken 1 | 1 . Scrap Searched . | . . Spaces Dug . | . . Terrain Destroyed . | . . Melee . | . . Projectile . | . . AOE . | . . Terrain Rammed . | . . Walls Destroyed . | . . Machines Disabled . | . . Actions | -11 -10 --------- Run | Yrd Mat Total 669 | 90 579 Wait 8 | . 8 Move 550 | 82 468 Hop . | . . Pick Up 7 | 2 5 Fast Attach 16 | 6 10 Attach 2 | . 2 Detach 6 | . 6 Swap . | . . Drop 5 | . 5 Fire 57 | . 57 Melee . | . . Ram 5 | . 5 Kick . | . . Crush 13 | . 13 Escape Stasis . | . . Rewire . | . . Trap . | . . Miscellaneous . | . . Route ------- -11/Scrapyard -10/Materials (discovered 2 exits: [*Mat x2]) History --------- Turn | Location | Event 6 | -11/Scrapyard | Discovered new exit (range 16) 126 | -11/Scrapyard | Entered Materials 342 | -10/Materials | Build established: Mutant 493 | -10/Materials | Discovered new exit (range 18) 762 | -10/Materials | Discovered new exit (range 9) 1051 | -10/Materials | Core integrity fell below 50% 1067 | -10/Materials | Core integrity fell below 20% 1072 | -10/Materials | Destroyed by G-47 Trooper with Particle Gun Last Messages --------------- 01003_ K-01 Serf collects debris. 01008_ ALERT: Hostiles spotted, dispatching reinforcements to Terminal M002. 01024_ Lgt. Ion Engine destroyed. 01030_ Critical hit (Burn: +37). 01032_ Lgt. Treads destroyed. 01037_ Lgt. Assault Rifle destroyed. 01039_ Slammed into G-47 Trooper. 01044_ W-16 Scout sends out distress signal. 01044_ Slammed into G-47 Trooper. 01054_ Slammed into G-34 Mercenary. 01054_ G-34 Mercenary destroyed. 01061_ Lgt. Treads destroyed. 01062_ U-05 Engineer suffers critical hit (Burn). 01062_ U-05 Engineer destroyed. 01063_ Slammed into G-47 Trooper. 01070_ Slammed into G-34 Mercenary. 01070_ G-34 Mercenary destroyed. [Achievement: Back For More] Map ----- +----------------------------------------------------+ | ???????# """#?????# ## #??????????????? | | ???????# #?????# ## ##?????????????? | | ???????####+###?????# # ###+#####?????? | | ?????????# ######## # ??? | | ?????????# % +[[ + T ??? | | ?????????# ######## # ??? | | ?????????##%##??????# # ############??? | | ??????????#*#???????# # ###?????????????? | | ########??# #???????# # #???????????????? | | #??# #???????########## ##??????????????? | | """ #??# #???????????????## ##??????????????? | | """"" #### ###??####???###### #### ???????????? | | """"" ## #??####???###### #####???????????? | | """"" ## ##### ? """ ## ???????????? | | """ ## ^ [ + """"" ## ????????????? | | ## # """"" ## ??????????????? | | ## " # """"" ## ##??????????????? | | ## """ # """ ## ##??????????????? | | ##+###### """ + + ##??????????????? | | %""" # ## #### "T" #????? | | ^ "" # % ##=% ############????? | | """ #######+#### ## ##????? | | "" ######%### # """ ##????? | | "" %*=* # """ ##????? | | " %%%%% + """ ##????? | | k=g@%%% # """ ##????? | | ##+####### # # ????? | | #+############ # ### ## | # ????? | | #???##### # ###* ## # ????? | | " #??????## # ###%! ## [ # ????? | | " !#########% # ###! ########### ????? | | " # ##+######## ########### ????? | | # % !# #????????? | | ###### = %# """ ####?????? | | # ## ###### ^ == +% "Y" + ???? | | # ## #???#########+## =[ # " " ####?????? | | # ## ######### #^ # #????????? | | # + + ## # ^ # [ #????????? | | # ## ## ## # %=########????????? | | # ## ## ## # """" ########????????? | | # ## ## ## # """" ##??????????????? | | ##+## = # """## # """" ##??????????????? | | =%!# """## # ^ ##??????????????? | | T + """## #^ ^ #########???????? | | # ## # """" # #???????? | | ## ## # """## # ^"""" # #???????? | | ?# ###%= ## """## # ^"""" # #???????? | | ?# #?# ## """## + ^ # """ #???????? | | ?# #?# ## ## # + """ #???????? | | ##+### ################^ """" # """ #???????? | +----------------------------------------------------+ Best States ------------- Heat Dissipation 25 Energy Generation 10 Energy Capacity 250 Matter Stores 300 Matter Capacity 300 Sight Range 18 Terrain Scan Density 10 Evasion (%) 40 Recoil Reduction 2 Item Schematics ----------------- None Robot Schematics ------------------ None Fabricated ------------ Nothing Alien Tech Used ----------------- None Achievements -------------- Back For More Challenges ------------ None Game ------ Seed HoverReinforcedClaws Manual? 0 Play Time 00:06:55 Cumulative 11.4 hours Start 2024.04.03 @ 23:04:46 End 2024.04.03 @ 23:10:12 Sessions 1 Manual Loads 0 Difficulty Rogue Special Mode None Game No. 50 Rogue 50 Adventurer 0 Explorer 0 Win Type - Total 0 Types 0/0/0/0/0/0/0/0/0 Lore% 9 Gallery% 15 Achievement% 14 Wizard Run 0 Options --------- Layout 1 ASCII 0 Keyboard 1 Movement Arrows Keybinds 0 Fullscreen 1 Font 24/Smallcaps Map View 50x35 Zoom Use 0% Tactical HUD 1 Map Filters NONE Filters NONE Steam 1 RUN: d8c31b00-bea4-4e3d-9d28-c09d92960bc7